bitfinex-derivatives/quotes_SOLF0:USTF0_20241212
["timestamp","ask_amount","ask_price","bid_price","bid_amount"]
[1734045367944,6.50428039,227.95,227.87,5.38782543]
[1734045368131,2.2,227.96,227.87,11.89210582]
[1734045368331,2.2,227.96,227.91,6.50428039]
[1734045368528,1.4394,228.0,227.95,6.50428039]
[1734045368736,6.50428039,228.01,227.96,2.1927]
[1734045368931,6.50428039,228.01,227.95,6.50428039]
[1734045369132,1.3646,228.02,227.97,6.50428039]
[1734045369837,1.3646,228.02,227.98,2.1925]
[1734045370041,8.70428039,228.05,227.97,6.50428039]
[1734045370229,10.89618039,228.05,227.97,6.50428039]
[1734045371339,2.192,228.04,227.98,2.1926]
[1734045371937,6.50428039,228.07,227.99,6.50428039]
[1734045372634,2.8655,228.08,228.01,6.50428039]
[1734045372899,1.4261,228.08,228.01,6.50428039]
[1734045373739,1.4261,228.08,228.03,2.192]
[1734045376845,1.4261,228.08,228.0,7.39490763]
[1734045376846,1.4222,228.14,228.05,6.50428039]
[1734045377059,1.4311,228.15,228.11,6.50428039]
[1734045377444,6.50428039,228.13,228.04,2.2]
[1734045377644,6.50428039,228.11,228.05,6.50428039]
[1734045378044,6.50428039,228.11,228.03,8.69638039]
[1734045378243,6.50428039,228.07,228.0,11.69918802]
[1734045378445,2.192,228.04,228.0,11.69918802]
[1734045378645,2.192,228.04,228.0,5.19490763]
[1734045380741,2.1921,228.03,228.0,5.19490763]
[1734045381142,6.50428039,228.05,228.0,5.19490763]
[1734045381839,2.1922,228.02,228.0,5.19490763]
[1734045382045,6.50428039,228.03,227.96,6.50428039]
[1734045383641,2.1924,228.0,227.96,6.50428039]
[1734045384440,6.50428039,228.03,227.96,6.50428039]
[1734045384648,6.50428039,228.03,227.96,8.69708039]
[1734045384849,6.50428039,228.03,227.98,6.50428039]
[1734045385049,6.50428039,228.03,227.99,5.24049661]
[1734045386252,2.1922,228.02,227.99,5.24049661]
[1734045389452,1.3709,228.07,227.99,5.24049661]
[1734045389674,7.87518039,228.07,228.0,6.50428039]
[1734045389951,6.50428039,228.05,227.99,5.24049661]
[1734045390154,2.1923,228.02,227.99,5.24049661]
[1734045391952,2.1921,228.04,227.99,5.24049661]
[1734045392746,8.69618039,228.05,228.0,2.1924]
[1734045395060,6.50428039,228.03,227.94,2.2]
[1734045395254,6.50428039,227.99,227.94,2.2]
[1734045395551,2.1926,227.98,227.91,3.647]
[1734045395762,2.1926,227.98,227.92,6.50428039]
[1734045396150,8.69678039,227.99,227.94,2.193]
[1734045396456,6.50428039,227.99,227.94,5.38769617]
[1734045396884,2.1927,227.98,227.94,5.38769617]
[1734045397557,2.1927,227.98,227.94,7.58069617]
[1734045398657,6.50428039,227.97,227.82,1.4139]
[1734045398849,6.50428039,227.97,227.86,6.50428039]
[1734045398850,6.50428039,227.93,227.86,6.50428039]
[1734045399054,2.1934,227.9,227.86,2.1936]
[1734045399252,6.50428039,227.89,227.73,42.67657349]
[1734045399455,2.2,227.92,227.81,6.50428039]
[1734045399456,6.50428039,227.87,227.81,6.50428039]
[1734045399655,6.50428039,227.89,227.83,11.75155386]
[1734045400060,2.1933,227.91,227.83,11.75155386]
[1734045400061,8.69758039,227.91,227.85,6.50428039]
[1734045400563,6.50428039,227.91,227.85,6.50428039]
[1734045400861,6.50428039,227.91,227.86,2.1937]
[1734045401056,6.50428039,227.91,227.85,6.50428039]
[1734045401263,6.50428039,227.91,227.87,2.1936]
[1734045401668,6.50428039,227.91,227.85,6.50428039]
[1734045401860,1.4087,227.96,227.89,6.50428039]
[1734045402093,6.50428039,227.95,227.89,6.50428039]
[1734045402254,1.4087,227.96,227.89,6.50428039]
[1734045402457,6.50428039,227.95,227.89,6.50428039]
[1734045403464,6.50428039,227.93,227.87,6.50428039]
[1734045403664,6.50428039,227.93,227.86,2.2]
[1734045403965,6.50428039,227.93,227.87,6.50428039]
[1734045404211,6.50428039,227.89,227.83,5.24727347]
[1734045404367,6.50428039,227.87,227.83,5.24727347]
[1734045405361,6.50428039,227.87,227.83,7.44127347]
[1734045406170,2.1935,227.88,227.83,7.44127347]
[1734045408263,2.1935,227.89,227.84,2.1939]
[1734045409271,6.50428039,227.88,227.83,5.24727347]
[1734045409470,2.1937,227.87,227.83,5.24727347]
[1734045409878,8.69788039,227.88,227.83,7.44127347]
[1734045413678,1.4087,227.96,227.86,6.50428039]
[1734045413871,6.50428039,227.93,227.86,6.50428039]
[1734045414170,2.2,227.95,227.86,6.50428039]
[1734045414373,8.69738039,227.93,227.86,6.50428039]
[1734045414773,6.50428039,227.93,227.86,6.50428039]
[1734045415072,6.50428039,227.95,227.88,6.50428039]
[1734045415771,3.6015,227.96,227.9,6.50428039]
[1734045416368,1.4087,227.96,227.9,6.50428039]
[1734045416696,8.70428039,227.99,227.92,6.50428039]
[1734045416877,10.89678039,227.99,227.94,2.1929]
[1734045418672,8.69678039,227.99,227.94,2.1929]
[1734045419576,8.69678039,227.99,227.95,2.1928]
[1734045420283,6.50428039,227.97,227.94,2.193]
[1734045421374,6.50428039,227.97,227.84,1.3922]
[1734045421577,6.50428039,227.93,227.85,8.70428039]
[1734045421979,6.50428039,227.93,227.88,2.1935]
[1734045421980,8.69738039,227.93,227.88,2.1935]
[1734045422177,8.69738039,227.93,227.87,6.50428039]
[1734045422379,6.50428039,227.93,227.87,6.50428039]
[1734045424583,6.50428039,227.93,227.9,2.1933]
[1734045424783,6.50428039,227.91,227.85,2.2]
[1734045426274,6.50428039,227.91,227.83,5.24727347]
[1734045426275,6.50428039,227.87,227.83,5.24727347]
[1734045426878,8.69778039,227.89,227.85,2.1938]
[1734045427283,8.69778039,227.89,227.83,5.24727347]
[1734045428577,8.69778039,227.89,227.84,2.1939]
[1734045429075,8.69778039,227.89,227.83,5.24727347]
[1734045429276,8.69778039,227.89,227.85,2.1938]
[1734045430386,8.69778039,227.89,227.84,2.1939]
[1734045430791,6.50428039,227.85,227.79,2.2]
[1734045431191,6.50428039,227.85,227.72,1.4143]
[1734045431497,6.50428039,227.83,227.76,6.50428039]
[1734045431682,6.50428039,227.83,227.73,2.2]
[1734045431880,6.50428039,227.83,227.78,2.1945]
[1734045432282,2.2,227.86,227.78,2.1945]
[1734045432283,6.50428039,227.81,227.78,2.1945]
[1734045432784,6.50428039,227.83,227.78,5.36836265]
[1734045434692,6.50428039,227.83,227.8,2.1942]
[1734045436534,6.50428039,227.81,227.73,8.70428039]
[1734045436689,6.50428039,227.79,227.75,5.35796221]
[1734045437695,6.50428039,227.79,227.75,7.55276221]
[1734045437893,6.50428039,227.79,227.75,5.35796221]
[1734045438617,6.50428039,227.79,227.76,2.1946]
[1734045440086,1.4217,227.88,227.75,11.8622426]
[1734045440292,6.50428039,227.85,227.77,6.50428039]
[1734045441187,6.50428039,227.83,227.75,5.35796221]
[1734045441386,6.50428039,227.79,227.75,5.35796221]
[1734045442388,6.50428039,227.77,227.69,2.2]
[1734045442592,6.50428039,227.75,227.69,2.2]
[1734045442789,6.50428039,227.75,227.72,5.40100136]
[1734045442990,6.50428039,227.75,227.72,7.59610136]
[1734045443297,1.4332,227.78,227.72,7.59610136]
[1734045443495,2.1946,227.77,227.72,7.59610136]
[1734045444692,2.1947,227.76,227.72,7.59610136]
[1734045446298,2.1947,227.76,227.66,10.18250357]
[1734045446299,1.4332,227.78,227.66,10.18250357]
[1734045446499,12.89850357,227.77,227.68,5.19671864]
[1734045447094,2.1951,227.73,227.68,7.39211864]
[1734045447996,2.1952,227.71,227.67,2.1956]
[1734045448195,2.1952,227.71,227.63,10.18250357]
[1734045448591,2.1952,227.71,227.65,5.35532869]
[1734045449300,14.57740357,227.74,227.69,2.1954]
[1734045449900,2.2,227.74,227.65,5.35532869]
[1734045450196,2.2,227.74,227.71,2.1952]
[1734045450804,2.2,227.74,227.65,5.35532869]
[1734045451004,2.2,227.74,227.72,2.1951]
[1734045452505,2.2,227.74,227.66,2.2]
[1734045453108,12.38250357,227.74,227.65,5.35532869]
[1734045453702,12.38250357,227.74,227.66,2.1956]
[1734045454302,2.1951,227.72,227.66,2.1956]
[1734045454504,12.38250357,227.74,227.66,2.1956]
[1734045454906,2.1953,227.7,227.66,2.1956]
[1734045455304,10.18250357,227.71,227.6,2.2]
[1734045455503,2.1956,227.67,227.59,2.2]
[1734045456003,2.1956,227.67,227.63,2.1959]
[1734045457001,5.8336,227.69,227.58,2.2]
[1734045457301,5.8336,227.69,227.63,5.24223068]
[1734045457708,3.6381,227.69,227.66,2.1956]
[1734045458609,3.6381,227.69,227.67,2.1955]
[1734045460912,10.18250357,227.73,227.63,5.24223068]
[1734045461109,2.1953,227.7,227.63,5.24223068]
[1734045461530,2.1953,227.7,227.65,2.1957]
[1734045463217,6.52039728,227.69,227.65,2.1957]
[1734045464716,2.1952,227.72,227.65,6.52039728]
[1734045464910,6.52039728,227.71,227.65,6.52039728]
[1734045465109,6.52039728,227.73,227.65,6.52039728]
[1734045465313,8.71539728,227.73,227.68,2.1954]
[1734045466111,8.71539728,227.73,227.69,2.1953]
[1734045466607,6.52039728,227.73,227.65,6.52039728]
[1734045466808,6.52039728,227.73,227.67,6.52039728]
[1734045468215,6.52039728,227.73,227.7,2.1953]
[1734045470419,8.71559728,227.71,227.67,2.1955]
[1734045471312,3.5575,227.76,227.65,6.52039728]
[1734045471520,2.1951,227.73,227.69,2.1953]
[1734045471711,6.52039728,227.72,227.69,2.1953]
[1734045473218,8.71549728,227.72,227.68,2.1955]
[1734045477020,6.52039728,227.7,227.66,2.1956]
[1734045477239,6.52039728,227.68,227.64,2.2]
[1734045477423,6.52039728,227.68,227.63,5.24223068]
[1734045477621,6.52039728,227.66,227.63,5.24223068]
[1734045478022,6.52039728,227.64,227.63,5.24223068]
[1734045479423,8.71609728,227.66,227.63,5.24223068]
[1734045479625,6.52039728,227.66,227.63,5.24223068]
[1734045482524,2.2,227.71,227.63,5.24223068]
[1734045482726,2.2,227.71,227.65,6.52039728]
[1734045482727,8.72039728,227.71,227.65,6.52039728]
[1734045483221,10.91559728,227.71,227.67,2.1955]
[1734045483624,1.3575,227.76,227.65,6.52039728]
[1734045483828,1.3575,227.76,227.67,2.1955]
[1734045483829,10.91539728,227.73,227.67,2.1955]
[1734045484029,10.91539728,227.73,227.65,6.52039728]
[1734045485029,8.71539728,227.73,227.65,6.52039728]
[1734045485429,8.71539728,227.73,227.64,2.2]
[1734045485631,6.52039728,227.71,227.64,8.72039728]
[1734045486723,2.1954,227.69,227.65,2.1957]
[1734045487525,2.1953,227.7,227.65,2.1957]
[1734045487730,6.52039728,227.71,227.68,2.1954]
[1734045490782,6.52039728,227.71,227.67,2.1955]
[1734045491241,6.52039728,227.71,227.68,2.1955]
[1734045491635,1.3575,227.76,227.69,6.52039728]
[1734045491840,6.52039728,227.79,227.71,6.52039728]
[1734045492337,6.52039728,227.79,227.75,2.1948]
[1734045493531,6.52039728,227.79,227.76,2.1947]
[1734045493933,6.52039728,227.77,227.69,2.2]
[1734045494140,6.52039728,227.75,227.71,2.1952]
[1734045494437,6.52039728,227.73,227.69,2.2]
[1734045494743,6.52039728,227.73,227.7,2.1953]
[1734045495140,6.52039728,227.75,227.7,2.1953]
[1734045495936,6.52039728,227.75,227.7,2.1952]
[1734045497535,8.71519728,227.75,227.7,2.1952]
[1734045498347,6.52039728,227.75,227.68,6.52039728]
[1734045498542,2.1947,227.77,227.7,6.52039728]
[1734045498543,6.52039728,227.77,227.7,6.52039728]
[1734045498941,6.52039728,227.77,227.74,2.1949]
[1734045504740,2.7606,227.83,227.76,6.52039728]
[1734045505143,4.9547,227.83,227.78,2.1945]
[1734045505644,6.52039728,227.84,227.8,2.1943]
[1734045505853,6.52039728,227.84,227.78,6.52039728]
[1734045506474,2.194,227.83,227.76,6.52039728]
[1734045506846,2.1941,227.82,227.78,2.1945]
[1734045507945,6.52039728,227.84,227.76,6.52039728]
[1734045508149,2.194,227.83,227.79,2.1944]
[1734045508353,6.2327,227.85,227.79,2.1944]
[1734045508552,6.52039728,227.84,227.79,2.1944]
[1734045509655,8.71439728,227.84,227.79,2.1944]
[1734045512749,8.71439728,227.84,227.75,5.24292327]
[1734045512750,8.71449728,227.82,227.77,2.1945]
[1734045512959,6.52039728,227.8,227.75,5.24292327]
[1734045513159,6.52039728,227.78,227.75,5.24292327]
[1734045514553,8.71489728,227.78,227.75,5.24292327]
[1734045514955,6.52039728,227.78,227.65,1.3629]
[1734045515155,6.52039728,227.78,227.7,6.52039728]
[1734045515350,6.52039728,227.74,227.65,1.3629]
[1734045515556,6.52039728,227.72,227.66,2.18]
[1734045516057,6.52039728,227.72,227.55,1.3792]
[1734045516058,6.52039728,227.68,227.63,7.42223068]
[1734045516357,6.52039728,227.68,227.63,5.24223068]
[1734045517557,6.52039728,227.68,227.64,2.1958]
[1734045517757,2.1951,227.72,227.64,6.52039728]
[1734045517965,6.52039728,227.72,227.66,6.52039728]
[1734045518359,8.71549728,227.72,227.67,2.1956]
[1734045519158,2.1951,227.72,227.67,2.1956]
[1734045520261,2.195,227.73,227.69,2.1954]
[1734045520563,2.195,227.73,227.63,5.24223068]
[1734045520864,2.195,227.73,227.69,2.1954]
[1734045523360,2.1951,227.72,227.67,2.1955]
[1734045523763,10.18643801,227.69,227.63,7.43813068]
[1734045523971,12.36643801,227.69,227.55,11.56563801]
[1734045524275,12.36643801,227.69,227.56,2.18]
[1734045525672,2.1958,227.65,227.6,2.1962]
[1734045526373,10.18643801,227.65,227.53,2.18]
[1734045526972,10.18643801,227.68,227.53,2.18]
[1734045527277,12.36643801,227.68,227.55,10.18643801]
[1734045527577,2.18,227.68,227.56,5.26430754]
[1734045527769,10.18643801,227.71,227.58,10.18643801]
[1734045527968,12.36643801,227.71,227.59,2.18]
[1734045530668,2.1955,227.68,227.59,2.18]
[1734045531268,12.36643801,227.71,227.59,2.18]
[1734045531871,12.36643801,227.71,227.63,2.1959]
[1734045532672,2.1954,227.69,227.63,2.1959]
[1734045534582,2.1954,227.69,227.59,2.18]
[1734045534880,2.18,227.71,227.61,10.18643801]
[1734045535576,2.18,227.71,227.66,2.1956]
[1734045535779,2.18,227.71,227.61,10.18643801]
[1734045535983,2.195,227.73,227.61,10.18643801]
[1734045536182,4.0733,227.74,227.64,10.18643801]
[1734045536383,4.0733,227.74,227.65,2.18]
[1734045536783,4.0733,227.74,227.7,2.1953]
[1734045536981,1.3581,227.74,227.65,2.18]
[1734045537183,1.3581,227.74,227.67,10.18643801]
[1734045538382,1.3581,227.74,227.72,2.195]
[1734045538890,1.3581,227.74,227.67,10.18643801]
[1734045539087,1.3581,227.74,227.7,2.1952]
[1734045539895,1.3581,227.74,227.71,2.1951]
[1734045540084,2.1947,227.76,227.67,10.18643801]
[1734045540085,4.3746,227.78,227.67,10.18643801]
[1734045540791,2.1946,227.77,227.67,10.18643801]
[1734045541292,6.51683481,227.76,227.72,2.1951]
[1734045543296,6.51683481,227.74,227.56,9.65750754]
[1734045543518,2.18,227.78,227.57,2.18]
[1734045543519,6.51683481,227.7,227.57,2.18]
[1734045543702,6.51683481,227.7,227.63,6.51683481]
[1734045543907,2.1953,227.71,227.65,8.71253481]
[1734045544192,4.1253,227.79,227.56,5.26430754]
[1734045544193,6.51683481,227.68,227.61,8.69683481]
[1734045544391,8.71233481,227.68,227.63,2.1959]
[1734045544588,6.51683481,227.68,227.63,2.1959]
[1734045545190,2.1956,227.67,227.61,8.69683481]
[1734045545386,2.1956,227.67,227.62,2.196]
[1734045546494,6.51683481,227.68,227.63,2.1959]
[1734045547295,8.71233481,227.68,227.63,2.1959]
[1734045549893,7.86613481,227.7,227.63,6.51683481]
[1734045550088,1.3493,227.7,227.65,6.51683481]
[1734045550288,24.0,227.61,227.56,5.26430754]
[1734045550511,24.0,227.61,227.47,18.1425292]
[1734045550512,6.51683481,227.57,227.41,6.04750973]
[1734045550797,2.18,227.6,227.4,15.364593]
[1734045550798,2.18,227.56,227.4,4.297793]
[1734045551143,6.51683481,227.41,227.4,4.297793]
[1734045551174,6.51683481,227.41,227.33,6.04750973]
[1734045551490,6.51683481,227.39,227.3,54.4275876]
[1734045551510,2.42,227.51,227.29,18.1425292]
[1734045551841,2.42,227.51,227.18,1.3482]
[1734045551842,2.1984,227.38,227.34,5.22829437]
[1734045552166,150.9628306,227.61,227.33,2.42]
[1734045552167,2.42,227.59,227.33,2.42]
[1734045552200,13.84901134,227.58,227.33,2.42]
[1734045552553,2.42,227.59,227.28,6.51683481]
[1734045552554,6.51683481,227.36,227.28,6.51683481]
[1734045552572,6.51683481,227.34,227.27,2.1994]
[1734045552868,6.51683481,227.34,227.26,6.51683481]
[1734045553095,6.51683481,227.34,227.27,2.42]
[1734045553114,6.51683481,227.34,227.26,6.51683481]
[1734045553310,2.42,227.47,227.24,2.1997]
[1734045553311,10.22197516,227.37,227.27,2.42]
[1734045553496,2.199,227.32,227.22,2.1999]
[1734045553699,10.22197516,227.37,227.22,5.32622]
[1734045553901,10.22197516,227.37,227.23,2.42]
[1734045554196,2.1989,227.33,227.24,2.42]
[1734045554395,10.22197516,227.48,227.19,2.7807]
[1734045554597,10.22197516,227.34,227.2,2.42]
[1734045554793,10.22197516,227.37,227.19,2.7807]
[1734045554794,10.22197516,227.31,227.19,2.7807]
[1734045554997,10.22197516,227.31,227.2,2.42]
[1734045555197,10.22197516,227.31,227.19,2.7807]
[1734045555699,10.22197516,227.31,227.2,2.42]
[1734045555700,2.1993,227.29,227.2,2.42]
[1734045556001,2.1993,227.29,227.21,2.42]
[1734045556197,2.1993,227.29,227.22,2.42]
[1734045556401,2.2001,227.21,227.09,2.2012]
[1734045556700,10.22197516,227.25,227.1,4.2672]
[1734045556902,2.2002,227.2,227.1,6.4682]
[1734045557204,10.22197516,227.22,227.1,4.2672]
[1734045557396,2.2005,227.16,227.1,4.2672]
[1734045557601,10.22197516,227.19,227.1,2.8253]
[1734045558201,2.2008,227.14,227.02,2.2018]
[1734045558402,2.42,227.21,227.01,15.40168673]
[1734045558403,10.22197516,227.16,227.01,15.40168673]
[1734045558594,10.22197516,227.16,227.02,2.42]
[1734045558800,10.22197516,227.19,227.04,10.22197516]
[1734045559098,10.22197516,227.19,227.05,2.42]
[1734045559300,10.22197516,227.19,227.06,10.22197516]
[1734045559603,10.22197516,227.19,227.06,11.61127516]
[1734045560002,2.2004,227.17,227.06,11.61127516]
[1734045560503,2.42,227.21,227.06,11.61127516]
[1734045560704,2.2001,227.2,227.08,2.2013]
[1734045561012,12.64197516,227.28,227.12,10.22197516]
[1734045561205,10.22197516,227.28,227.13,5.2449]
[1734045561806,2.1997,227.25,227.15,2.2005]
[1734045562056,10.22197516,227.25,227.13,5.2449]
[1734045562407,2.2,227.22,227.13,5.2449]
[1734045562608,2.2,227.22,227.13,2.8249]
[1734045562808,10.22197516,227.25,227.14,2.42]
[1734045563125,12.64197516,227.3,227.14,12.64197516]
[1734045564143,10.22197516,227.27,227.14,10.22197516]
[1734045564303,10.22197516,227.27,227.15,2.42]
[1734045564501,2.1999,227.23,227.15,2.42]
[1734045564704,10.22197516,227.24,227.13,2.8249]
[1734045564904,10.22197516,227.24,227.12,2.42]
[1734045565214,10.22197516,227.21,227.08,10.22197516]
[1734045565404,2.2004,227.17,227.1,2.42]
[1734045565614,10.22197516,227.21,227.1,2.42]
[1734045565806,2.42,227.25,227.11,10.22197516]
[1734045566302,2.42,227.25,227.1,9.84528757]
[1734045566303,2.2002,227.2,227.1,9.84528757]
[1734045566501,2.42,227.25,227.1,7.64418757]
[1734045566502,10.22197516,227.22,227.1,7.64418757]
[1734045566701,2.1998,227.24,227.14,2.2006]
[1734045566905,12.64197516,227.25,227.11,10.22197516]
[1734045567311,2.42,227.25,227.11,16.36864769]
[1734045567509,2.42,227.25,227.17,2.2004]
[1734045567709,2.42,227.28,227.16,2.42]
[1734045568111,2.1995,227.27,227.18,2.2003]
[1734045569713,2.1996,227.26,227.16,4.6204]
[1734045569910,2.42,227.28,227.16,2.42]
[1734045570813,2.42,227.28,227.17,2.2004]
[1734045570814,2.1996,227.25,227.17,2.2004]
[1734045571117,18.78864769,227.33,227.16,2.42]
[1734045571408,2.1992,227.3,227.22,2.1999]
[1734045571804,18.78864769,227.33,227.21,2.42]
[1734045572003,16.36864769,227.33,227.21,2.42]
[1734045572810,2.199,227.32,227.25,2.1996]
[1734045574316,16.36864769,227.33,227.17,2.9069]
[1734045574511,16.36864769,227.33,227.18,2.42]
[1734045574714,16.36864769,227.33,227.19,2.42]
[1734045575315,2.1991,227.31,227.25,2.1996]
[1734045575709,5.26340333,227.35,227.24,2.42]
[1734045576210,2.67685,227.36,227.26,2.1995]
[1734045576211,2.1988,227.34,227.26,2.1995]
[1734045576410,2.1988,227.34,227.24,2.42]
[1734045576619,0.25685,227.36,227.24,2.42]
[1734045577619,0.25685,227.36,227.31,2.199]
[1734045577810,0.25685,227.36,227.29,2.42]
[1734045578012,0.25685,227.36,227.3,2.42]
[1734045578217,0.25685,227.36,227.34,2.1987]
[1734045578519,0.25685,227.36,227.3,2.42]
[1734045579417,0.25685,227.36,227.34,2.1987]
[1734045579715,0.25685,227.36,227.3,2.42]
[1734045580313,0.25685,227.36,227.23,16.36864769]
[1734045580610,0.25685,227.36,227.24,2.46]
[1734045581119,2.45555,227.36,227.28,2.1993]
[1734045581320,2.45555,227.36,227.29,2.46]
[1734045581520,2.45545,227.36,227.3,2.1991]
[1734045581719,0.25685,227.36,227.29,2.46]
[1734045583117,0.25685,227.36,227.21,16.36864769]
[1734045583318,2.46,227.35,227.2,1.3343]
[1734045583514,16.36864769,227.33,227.21,2.1999]
[1734045584221,16.36864769,227.33,227.2,1.3343]
[1734045584521,2.1997,227.24,227.2,1.3343]
[1734045584824,2.1994,227.28,227.21,2.2]
[1734045585016,2.46,227.29,227.2,1.3343]
[1734045585919,2.1994,227.28,227.21,2.2]
[1734045586136,2.46,227.29,227.2,1.3343]
[1734045586330,2.1998,227.24,227.18,2.2002]
[1734045586519,2.46,227.29,227.1,45.76]
[1734045586520,18.82864769,227.29,227.11,1.4411]
[1734045586822,2.1998,227.24,227.14,2.2006]
[1734045587022,18.82864769,227.29,227.11,1.4411]
[1734045587213,10.23010899,227.28,227.13,10.23010899]
[1734045587822,2.1998,227.23,227.17,2.2004]
[1734045588024,2.1998,227.23,227.13,10.23010899]
[1734045588923,2.2,227.22,227.16,2.2005]
[1734045589722,2.2,227.22,227.15,4.6606]
[1734045590221,2.2,227.22,227.13,10.23010899]
[1734045590222,2.2001,227.2,227.14,2.2007]
[1734045590441,2.2001,227.2,227.14,4.6607]
[1734045590923,2.2001,227.2,227.14,2.2007]
[1734045591717,2.46,227.24,227.13,10.23010899]
[1734045592324,2.2001,227.2,227.13,12.43080899]
[1734045592823,2.46,227.24,227.13,12.43080899]
[1734045593022,2.46,227.24,227.13,2.2007]
[1734045593916,2.2003,227.19,227.13,2.2007]
[1734045596124,2.2006,227.15,227.11,1.4411]
[1734045596329,2.2006,227.15,227.07,12.69010899]
[1734045596573,2.2006,227.15,227.07,2.46]
[1734045596929,2.2007,227.14,227.07,4.6613]
[1734045597127,2.2007,227.14,227.07,2.46]
[1734045597523,2.2009,227.12,227.07,4.6614]
[1734045597725,2.2009,227.12,227.07,2.2014]
[1734045598030,12.69010899,227.19,227.04,17.84711894]
[1734045598230,2.2007,227.14,227.08,2.2012]
[1734045598730,8.44061284,227.18,227.08,2.2012]
[1734045598929,12.69010899,227.19,227.08,2.2012]
[1734045599123,2.201,227.11,227.06,2.2014]
[1734045601233,2.2013,227.09,227.03,2.2017]
[1734045601422,12.69010899,227.13,227.0,2.46]
[1734045601627,2.46,227.13,227.0,2.46]
[1734045602026,2.46,227.13,227.02,10.23010899]
[1734045602334,2.46,227.17,227.02,10.23010899]
[1734045602524,2.2006,227.15,227.09,2.2012]
[1734045603343,2.2007,227.14,227.09,2.2012]
[1734045603531,15.52913707,227.16,227.05,2.46]
[1734045603795,2.201,227.11,227.05,2.46]
[1734045604239,2.201,227.11,227.02,10.23010899]
[1734045604829,15.52913707,227.16,227.02,10.23010899]
[1734045605335,2.2008,227.13,227.07,2.2014]
[1734045605525,15.52913707,227.16,227.07,2.2014]
[1734045605726,15.52913707,227.16,227.02,10.23010899]
[1734045606160,15.52913707,227.16,227.08,2.2012]
[1734045606336,10.23010899,227.16,227.03,10.23010899]
[1734045606531,0.28794,227.23,227.06,10.23010899]
[1734045606532,10.23010899,227.19,227.06,10.23010899]
[1734045606736,2.46,227.2,227.07,2.46]
[1734045606926,5.38516809,227.19,227.07,2.46]
[1734045607134,2.2003,227.18,227.07,2.46]
[1734045607332,2.46,227.2,227.08,2.8264]
[1734045607838,2.46,227.2,227.09,10.23010899]
[1734045608237,2.2003,227.18,227.14,2.2007]
[1734045608535,2.46,227.2,227.14,2.2007]
[1734045608934,2.2003,227.18,227.14,2.2007]
[1734045611140,2.2003,227.18,227.09,10.23010899]
[1734045611141,2.2001,227.2,227.15,2.2005]
[1734045611338,2.46,227.21,227.09,10.23010899]
[1734045611941,2.2003,227.18,227.13,2.2007]
[1734045612341,2.46,227.21,227.13,2.2007]
[1734045612537,2.2004,227.17,227.13,2.2007]
[1734045615442,2.2005,227.16,227.08,4.1914]
[1734045615946,2.2004,227.18,227.12,2.2009]
[1734045618544,2.2004,227.18,227.08,4.1914]
[1734045618545,2.2006,227.15,227.1,2.2011]
[1734045618842,10.23010899,227.16,227.08,2.8264]
[1734045619050,12.59010899,227.16,227.03,2.36]
[1734045619243,2.201,227.11,227.05,2.2015]
[1734045619545,10.23010899,227.1,227.0,4.0906]
[1734045619778,2.2015,227.06,227.0,6.2926]
[1734045620155,12.59010899,227.1,226.87,6.06392366]
[1734045620453,10.23010899,227.07,226.88,4.1596]
[1734045620646,10.23010899,227.07,226.92,10.23010899]
[1734045621542,2.2017,227.04,226.97,2.2023]
[1734045621747,10.23010899,227.07,226.95,10.23010899]
[1734045621949,2.36,227.06,226.95,12.59010899]
[1734045622244,10.23010899,227.13,226.95,2.36]
[1734045622245,2.36,227.08,226.95,2.36]
[1734045622440,2.36,227.07,226.95,2.36]
[1734045622865,2.2015,227.06,227.0,2.202]
[1734045623745,2.36,227.07,227.0,2.202]
[1734045624047,4.5614,227.07,227.0,2.202]
[1734045624243,2.36,227.07,227.0,2.202]
[1734045624447,2.2015,227.06,227.0,2.202]
[1734045624844,2.2015,227.06,226.96,2.36]
[1734045624845,2.36,227.07,226.96,2.36]
[1734045625050,2.36,227.07,226.97,11.55310899]